lending/lending_fUSD_20240228
["ID","MTS","AMOUNT","RATE_DAILY","PERIOD"]
[315497524,1709078418172,997.0,0.00023,6]
[315497525,1709078436010,199.58508054,0.000235,2]
[315497526,1709078479958,157.58,0.00022767,2]
[315497527,1709078480095,158.62,0.00022767,2]
[315497528,1709078511813,500.0,0.00022767,2]
[315497529,1709078528053,170.08,0.0002277,2]
[315497530,1709078547545,278.66,0.00022775,2]
[315497531,1709078550748,23900.0,0.00022775,2]
[315497532,1709078551428,290.32946801,0.00022106,3]
[315497533,1709078567703,177.9,0.00022835,2]
[315497534,1709078568930,177.9,0.00023383,2]
[315497535,1709078605010,200.0,0.0002278,2]
[315497536,1709078608421,7112.5105345,0.00022973,2]
[315497537,1709078612049,168.83772257,0.0002343,2]
[315497538,1709078641488,214.60356213,0.00022106,3]
[315497539,1709078644536,707.0,0.00023,2]
[315497540,1709078669199,1057.14,0.0002085,2]
[315497541,1709078669442,1057.14,0.00023113,2]
[315497542,1709078673954,201.0,0.00023382,2]
[315497543,1709078708254,13152.02,0.00023,2]
[315497544,1709078723839,2855.97,0.00022771,2]
[315497545,1709078726321,2750.0,0.00023,3]
[315497546,1709078737539,590.0,0.00023288,2]
[315497547,1709078763890,200.0,0.00022776,2]
[315497548,1709078778941,250.0,0.00022769,2]
[315497549,1709078785441,250.0,0.00022769,2]
[315497550,1709078797434,328.0,0.00022767,2]
[315497551,1709078815232,250.0,0.00022835,2]
[315497552,1709078818154,-201.04170415,0.00023505,2]
[315497553,1709078820125,2000.0,0.00022769,2]
[315497554,1709078830770,245.19253225,0.00022835,2]
[315497555,1709078833688,150.0,0.00022835,2]
[315497556,1709078835024,150.0,0.00023383,2]
[315497557,1709078839885,150.0,0.00022835,2]
[315497558,1709078874028,369.49853753,0.000235,2]
[315497559,1709078938397,19645.18025154,0.00022978,2]
[315497560,1709078955487,275.0,0.00022768,2]
[315497562,1709078969255,16848.2674558,0.00022978,2]
[315497563,1709078996975,153.69,0.00022938,2]
[315497564,1709078997399,153.69,0.00023009,2]
[315497565,1709078997641,153.69,0.00023079,2]
[315497566,1709078997844,153.69,0.00023149,2]
[315497567,1709078998053,153.69,0.0002322,2]
[315497568,1709078998295,153.69,0.0002329,2]
[315497569,1709078998520,153.69,0.0002336,2]
[315497570,1709078998771,153.69,0.0002343,2]
[315497571,1709079002080,611.76235136,0.00022106,3]
[315497572,1709079005247,201.0,0.00023297,2]
[315497573,1709079009699,23900.0,0.00022766,2]
[315497576,1709079013754,173.81,0.00022764,2]
[315497577,1709079018873,1100.0,0.00023,6]
[315497578,1709079029108,158.62,0.00022764,2]
[315497580,1709079032695,-153.69,0.00023501,2]
[315497581,1709079032705,-456.04541734,0.00023505,2]
[315497582,1709079032715,-168.83772257,0.00023506,2]
[315497583,1709079032724,-2579.95,0.00023529,2]
[315497584,1709079032734,-2565.73,0.0002353,2]
[315497585,1709079032748,-278.3815759,0.0002353,2]
[315497586,1709079034429,-2246.7684241,0.0002353,2]
[315497587,1709079034439,-153.69,0.00023571,2]
[315497588,1709079034449,-168.83772257,0.00023583,2]
[315497589,1709079034459,-150.0,0.00023592,2]
[315497590,1709079034469,-2980.25,0.00023593,2]
[315497591,1709079034479,-499.99,0.00023593,2]
[315497592,1709079034489,-2000.0,0.000236,2]
[315497593,1709079034499,-153.69,0.00023641,2]
[315497594,1709079034509,-93.57446486,0.00023659,2]
[315497595,1709079034522,-75.26325771,0.00023659,2]
[315497596,1709079034533,-280.60236559,0.000237,2]
[315497597,1709079034545,-3447.99910402,0.000237,2]
[315497598,1709079034558,-2298.33629159,0.000237,2]
[315497599,1709079034575,-1054.8605388,0.000237,2]
[315497600,1709079034584,-2412.781,0.000237,2]
[315497601,1709079034594,-307.96821434,0.000237,2]
[315497602,1709079034604,-153.69,0.00023712,2]
[315497603,1709079034613,-307.96821433,0.00023718,2]
[315497604,1709079034624,-150.0,0.00023724,2]
[315497605,1709079034633,-150.0,0.00023726,2]
[315497606,1709079034642,-150.0,0.00023734,2]
[315497607,1709079034652,-163.4792,0.00023735,2]
[315497608,1709079034662,-522.88133174,0.00023735,2]
[315497609,1709079034672,-151.10176313,0.00023735,2]
[315497610,1709079034681,-168.83772257,0.00023735,2]
[315497611,1709079034690,-172.67273251,0.00023735,2]
[315497613,1709079034700,-210.25773567,0.00023735,2]
[315497615,1709079034709,-307.96821433,0.00023735,2]
[315497616,1709079034719,-2433.17545001,0.00023735,2]
[315497617,1709079034729,-717.5365741,0.00023735,2]
[315497618,1709079034738,-218.25669388,0.00023735,2]
[315497619,1709079034747,-1255.5673,0.00023735,2]
[315497620,1709079034757,-4543.13631459,0.00023735,2]
[315497622,1709079034770,-5456.86368541,0.00023735,2]
[315497624,1709079034779,-226.3586,0.00023735,2]
[315497626,1709079034788,-24613.9282,0.00023735,2]
[315497628,1709079034798,-548.2026,0.00023735,2]
[315497630,1709079034808,-5000.0,0.00023735,2]
[315497632,1709079034818,-1000.0,0.00023735,2]
[315497634,1709079034827,-1000.0,0.00023735,2]
[315497636,1709079034837,-150.0,0.00023751,2]
[315497638,1709079034846,-1619.87527485,0.00023754,2]
[315497640,1709079034856,-150.0,0.00023758,2]
[315497642,1709079034866,-150.0,0.00023766,2]
[315497644,1709079034875,-150.0,0.00023766,2]
[315497647,1709079034885,-150.0,0.00023772,2]
[315497648,1709079034895,-150.0,0.00023778,2]
[315497651,1709079034905,-150.0,0.00023782,2]
[315497653,1709079034914,-153.69,0.00023782,2]
[315497654,1709079034925,-150.0,0.00023783,2]
[315497656,1709079034934,-150.0,0.00023796,2]
[315497658,1709079034944,-569.36007,0.00023798,2]
[315497661,1709079034954,-38420.31909782,0.000238,2]
[315497662,1709079034964,-55961.92132676,0.000238,2]
[315497663,1709079034974,-1975.43531894,0.000238,2]
[315497664,1709079034984,-150.0,0.00023804,2]
[315497665,1709079034994,-1305.5451478,0.00023804,2]
[315497666,1709079035004,-150.0,0.00023804,2]
[315497667,1709079035014,-150.0,0.00023805,2]
[315497668,1709079035023,-800.0,0.00023808,2]
[315497669,1709079035034,-200.0,0.00023808,2]
[315497670,1709079035043,-200.0,0.00023808,2]
[315497671,1709079035053,-150.0,0.00023808,2]
[315497672,1709079035062,-150.0,0.00023809,2]
[315497673,1709079035072,-150.0,0.00023809,2]
[315497674,1709079035082,-150.0,0.00023811,2]
[315497675,1709079035091,-245.05683031,0.00023834,2]
[315497676,1709079035102,-586.90975074,0.00023834,2]
[315497677,1709079035112,-150.0,0.00023834,2]
[315497678,1709079035124,-150.0,0.00023834,2]
[315497679,1709079035134,-2271.324972,0.00023834,3]
[315497680,1709079035145,-293.72325239,0.00023835,2]
[315497681,1709079035155,-500.0,0.00023835,2]
[315497682,1709079035169,-500.0,0.00023835,2]
[315497683,1709079035178,-500.0,0.00023835,2]
[315497684,1709079035188,-500.0,0.00023835,2]
[315497685,1709079035199,-500.0,0.00023835,2]
[315497686,1709079035208,-500.0,0.00023835,2]
[315497687,1709079035218,-500.0,0.00023835,2]
[315497688,1709079035335,-503.0,0.00023835,2]
[315497689,1709079035346,-500.0,0.00023835,2]
[315497690,1709079035356,-500.0,0.00023835,2]
[315497691,1709079035367,-500.0,0.00023835,2]
[315497692,1709079035377,-370.93584289,0.00023835,2]
[315497693,1709079035388,-500.0,0.00023835,2]
[315497694,1709079035398,-500.0,0.00023835,2]
[315497695,1709079035408,-500.0,0.00023835,2]
[315497696,1709079035417,-500.0,0.00023835,2]
[315497697,1709079035427,-512.04195054,0.00023835,2]
[315497698,1709079035436,-348.55741697,0.00023835,2]
[315497699,1709079035446,-555.38411133,0.00023835,2]
[315497700,1709079035455,-500.0,0.00023835,2]
[315497701,1709079035465,-500.0,0.00023835,2]
[315497702,1709079035475,-500.0,0.00023835,2]
[315497703,1709079035484,-500.0,0.00023835,2]
[315497704,1709079035494,-500.0,0.00023835,2]
[315497705,1709079035503,-591.92793454,0.00023835,2]
[315497706,1709079035512,-500.0,0.00023835,2]
[315497707,1709079035521,-500.0,0.00023835,2]
[315497708,1709079035531,-500.0,0.00023835,2]
[315497709,1709079035540,-526.79803505,0.00023835,2]
[315497710,1709079035549,-619.91630727,0.00023835,2]
[315497711,1709079035558,-552.14438031,0.00023835,2]
[315497712,1709079035567,-500.0,0.00023835,2]
[315497713,1709079035576,-500.0,0.00023835,2]
[315497714,1709079035586,-500.0,0.00023835,2]
[315497715,1709079035595,-174.75205624,0.00023835,2]
[315497716,1709079035605,-500.0,0.00023835,2]
[315497717,1709079035614,-500.0,0.00023835,2]
[315497718,1709079035624,-355.99924085,0.00023835,2]
[315497719,1709079035634,-500.0,0.00023835,2]
[315497720,1709079035643,-500.0,0.00023835,2]
[315497721,1709079035653,-524.6326369,0.00023835,2]
[315497722,1709079035663,-500.0,0.00023835,2]
[315497723,1709079035672,-500.0,0.00023835,2]
[315497724,1709079035682,-500.0,0.00023835,2]
[315497725,1709079035691,-500.0,0.00023835,2]
[315497726,1709079035700,-500.0,0.00023835,2]
[315497727,1709079035709,-283.05968435,0.00023835,2]
[315497728,1709079035718,-539.03372331,0.00023835,2]
[315497729,1709079035727,-578.69929523,0.00023835,2]
[315497730,1709079035736,-500.0,0.00023835,2]
[315497731,1709079035746,-500.0,0.00023835,2]
[315497732,1709079035754,-550.14527291,0.00023835,2]
[315497733,1709079035763,-506.84209559,0.00023835,2]
[315497734,1709079035772,-529.3115283,0.00023835,2]
[315497735,1709079035781,-318.09427501,0.00023835,2]
[315497736,1709079035790,-501.88392312,0.00023835,2]
[315497737,1709079035800,-500.0,0.00023835,2]
[315497738,1709079035809,-500.0,0.00023835,2]
[315497739,1709079035818,-500.0,0.00023835,2]
[315497740,1709079035827,-524.96883211,0.00023835,2]
[315497741,1709079035836,-500.0,0.00023835,2]
[315497742,1709079035846,-500.0,0.00023835,2]
[315497743,1709079035855,-416.11106698,0.00023835,2]
[315497744,1709079035864,-500.0,0.00023835,2]
[315497745,1709079035874,-207.53688616,0.00023835,2]
[315497746,1709079035884,-500.0,0.00023835,2]
[315497747,1709079035894,-500.0,0.00023835,2]
[315497748,1709079035903,-500.0,0.00023835,2]
[315497749,1709079035912,-500.0,0.00023835,2]
[315497750,1709079035922,-577.11950902,0.00023835,2]
[315497751,1709079035932,-511.81250277,0.00023835,2]
[315497752,1709079035942,-500.0,0.00023835,2]
[315497753,1709079035951,-500.0,0.00023835,2]
[315497754,1709079035961,-269.25456085,0.00023835,2]
[315497755,1709079035970,-523.82987068,0.00023835,2]
[315497756,1709079035979,-500.0,0.00023835,2]
[315497757,1709079035989,-500.0,0.00023835,2]
[315497758,1709079035998,-570.52094712,0.00023835,2]
[315497759,1709079036008,-500.0,0.00023835,2]
[315497760,1709079036018,-500.0,0.00023835,2]
[315497761,1709079036027,-512.92568007,0.00023835,2]
[315497762,1709079036037,-500.0,0.00023835,2]
[315497763,1709079036046,-500.0,0.00023835,2]
[315497764,1709079036055,-500.0,0.00023835,2]
[315497765,1709079036065,-500.0,0.00023835,2]
[315497766,1709079036074,-500.0,0.00023835,2]
[315497767,1709079036084,-151.28056287,0.00023835,2]
[315497768,1709079036093,-2013.91301406,0.00023835,2]
[315497769,1709079036103,-500.0,0.00023835,2]
[315497770,1709079036113,-535.94920926,0.00023835,2]
[315497771,1709079036123,-500.0,0.00023835,2]
[315497772,1709079036133,-500.0,0.00023835,2]
[315497773,1709079036142,-500.0,0.00023835,2]
[315497774,1709079036156,-552.25128534,0.00023835,2]
[315497775,1709079036165,-500.0,0.00023835,2]
[315497776,1709079036175,-518.33835311,0.00023835,2]
[315497777,1709079036184,-500.0,0.00023835,2]
[315497778,1709079036194,-500.0,0.00023835,2]
[315497779,1709079036203,-500.0,0.00023835,2]
[315497780,1709079036213,-585.6946072,0.00023835,2]
[315497781,1709079036223,-500.0,0.00023835,2]
[315497782,1709079036235,-547.61668949,0.00023835,2]
[315497783,1709079036244,-500.0,0.00023835,2]
[315497784,1709079036253,-500.0,0.00023835,2]
[315497785,1709079036262,-547.99257549,0.00023835,2]
[315497786,1709079036271,-500.0,0.00023835,2]
[315497787,1709079036280,-500.0,0.00023835,2]
[315497788,1709079036289,-500.0,0.00023835,2]
[315497789,1709079036298,-500.0,0.00023835,2]
[315497790,1709079036308,-500.0,0.00023835,2]
[315497791,1709079036317,-500.0,0.00023835,2]
[315497792,1709079036326,-390.93574343,0.00023835,2]
[315497793,1709079036336,-503.62556632,0.00023835,2]
[315497794,1709079036345,-500.0,0.00023835,2]
[315497795,1709079036354,-500.0,0.00023835,2]
[315497796,1709079036364,-500.0,0.00023835,2]
[315497797,1709079036374,-506.82489327,0.00023835,2]
[315497798,1709079036384,-500.0,0.00023835,2]
[315497799,1709079036393,-500.0,0.00023835,2]
[315497800,1709079036402,-500.0,0.00023835,2]
[315497801,1709079036411,-492.37014552,0.00023835,2]
[315497802,1709079036420,-500.0,0.00023835,2]
[315497803,1709079036429,-573.87816301,0.00023835,2]
[315497804,1709079036438,-405.18830065,0.00023835,2]
[315497805,1709079036448,-429.13867638,0.00023835,2]
[315497806,1709079036457,-359.54547737,0.00023835,2]
[315497807,1709079036466,-500.0,0.00023835,2]
[315497808,1709079036475,-500.0,0.00023835,2]
[315497809,1709079036484,-432.92666658,0.00023835,2]
[315497810,1709079036494,-500.0,0.00023835,2]
[315497811,1709079036503,-500.0,0.00023835,2]
[315497812,1709079036512,-500.0,0.00023835,2]
[315497813,1709079036521,-500.0,0.00023835,2]
[315497814,1709079036530,-500.0,0.00023835,2]
[315497815,1709079036539,-500.0,0.00023835,2]
[315497816,1709079036548,-552.4012732,0.00023835,2]
[315497817,1709079036557,-500.0,0.00023835,2]
[315497818,1709079036566,-644.63102617,0.00023835,2]
[315497819,1709079036575,-500.0,0.00023835,2]
[315497820,1709079036585,-500.0,0.00023835,2]
[315497821,1709079036594,-359.37642707,0.00023835,2]
[315497822,1709079036603,-500.0,0.00023835,2]
[315497823,1709079036613,-500.0,0.00023835,2]
[315497824,1709079036624,-326.72875108,0.00023835,2]
[315497825,1709079036634,-500.0,0.00023835,2]
[315497826,1709079036643,-500.0,0.00023835,2]
[315497827,1709079036652,-500.0,0.00023835,2]
[315497828,1709079036661,-500.0,0.00023835,2]
[315497829,1709079036670,-500.0,0.00023835,2]
[315497830,1709079036679,-500.0,0.00023835,2]
[315497831,1709079036689,-210.93234147,0.00023835,2]
[315497832,1709079036698,-500.0,0.00023835,2]
[315497833,1709079036707,-500.0,0.00023835,2]
[315497834,1709079036716,-237.44929315,0.00023835,2]
[315497835,1709079036726,-500.0,0.00023835,2]
[315497836,1709079036735,-559.73204382,0.00023835,2]
[315497837,1709079036744,-318.31419059,0.00023835,2]
[315497838,1709079036754,-500.0,0.00023835,2]
[315497839,1709079036763,-500.0,0.00023835,2]
[315497840,1709079036773,-500.0,0.00023835,2]
[315497841,1709079036782,-500.0,0.00023835,2]
[315497842,1709079036791,-500.0,0.00023835,2]
[315497843,1709079036800,-500.0,0.00023835,2]
[315497844,1709079036810,-529.69852988,0.00023835,2]
[315497845,1709079036819,-500.0,0.00023835,2]
[315497846,1709079036828,-500.0,0.00023835,2]
[315497847,1709079036837,-500.0,0.00023835,2]
[315497848,1709079036846,-608.9618344,0.00023835,2]
[315497849,1709079036856,-500.0,0.00023835,2]
[315497850,1709079036866,-579.12894365,0.00023835,2]
[315497851,1709079036876,-500.0,0.00023835,2]
[315497852,1709079036886,-500.0,0.00023835,2]
[315497853,1709079036895,-500.0,0.00023835,2]
[315497854,1709079036905,-490.77686543,0.00023835,2]
[315497855,1709079036914,-500.0,0.00023835,2]
[315497856,1709079036924,-500.0,0.00023835,2]
[315497857,1709079036934,-500.0,0.00023835,2]
[315497858,1709079036943,-500.0,0.00023835,2]
[315497859,1709079036953,-500.0,0.00023835,2]
[315497860,1709079036963,-500.0,0.00023835,2]
[315497861,1709079036972,-628.44386353,0.00023835,2]
[315497862,1709079036982,-500.0,0.00023835,2]
[315497863,1709079036991,-514.22822762,0.00023835,2]
[315497864,1709079037000,-502.8561167,0.00023835,2]
[315497865,1709079037010,-500.0,0.00023835,2]
[315497866,1709079037019,-500.0,0.00023835,2]
[315497867,1709079037030,-531.29690557,0.00023835,2]
[315497868,1709079037040,-602.6700823,0.00023835,2]
[315497869,1709079037049,-500.0,0.00023835,2]
[315497870,1709079037060,-500.0,0.00023835,2]
[315497871,1709079037070,-500.0,0.00023835,2]
[315497872,1709079037080,-500.0,0.00023835,2]
[315497873,1709079037090,-500.0,0.00023835,2]
[315497874,1709079037099,-502.24354722,0.00023835,2]
[315497875,1709079037110,-500.0,0.00023835,2]
[315497876,1709079037121,-505.15679597,0.00023835,2]
[315497877,1709079037130,-500.0,0.00023835,2]
[315497878,1709079037140,-500.0,0.00023835,2]
[315497879,1709079037150,-512.57661183,0.00023835,2]
[315497880,1709079037160,-500.0,0.00023835,2]
[315497881,1709079037171,-500.0,0.00023835,2]
[315497882,1709079037180,-500.0,0.00023835,2]
[315497883,1709079037189,-227.25333043,0.00023835,2]
[315497884,1709079037198,-500.0,0.00023835,2]
[315497885,1709079037208,-500.0,0.00023835,2]
[315497886,1709079037218,-518.09625741,0.00023835,2]
[315497887,1709079037227,-500.0,0.00023835,2]
[315497888,1709079037236,-500.0,0.00023835,2]
[315497889,1709079037246,-500.0,0.00023835,2]
[315497890,1709079037255,-539.93580657,0.00023835,2]
[315497891,1709079037264,-500.0,0.00023835,2]
[315497892,1709079037273,-500.0,0.00023835,2]
[315497893,1709079037283,-500.0,0.00023835,2]
[315497894,1709079037291,-500.0,0.00023835,2]
[315497895,1709079037300,-525.06028808,0.00023835,2]
[315497896,1709079037310,-500.0,0.00023835,2]
[315497897,1709079037319,-500.0,0.00023835,2]
[315497898,1709079037328,-500.0,0.00023835,2]
[315497899,1709079037337,-500.0,0.00023835,2]
[315497900,1709079037346,-500.0,0.00023835,2]
[315497901,1709079037355,-500.0,0.00023835,2]
[315497902,1709079037364,-500.0,0.00023835,2]
[315497903,1709079037375,-453.80365242,0.00023835,2]
[315497904,1709079037384,-500.0,0.00023835,2]
[315497905,1709079037393,-500.0,0.00023835,2]
[315497906,1709079037402,-500.0,0.00023835,2]
[315497907,1709079037411,-500.0,0.00023835,2]
[315497908,1709079037420,-500.0,0.00023835,2]
[315497909,1709079037429,-500.0,0.00023835,2]
[315497910,1709079037438,-500.0,0.00023835,2]
[315497911,1709079037447,-500.0,0.00023835,2]
[315497912,1709079037456,-500.0,0.00023835,2]
[315497913,1709079037465,-500.0,0.00023835,2]
[315497914,1709079037475,-500.0,0.00023835,2]
[315497915,1709079037485,-500.0,0.00023835,2]
[315497916,1709079037494,-500.0,0.00023835,2]
[315497917,1709079037503,-503.26276372,0.00023835,2]
[315497918,1709079037513,-500.0,0.00023835,2]
[315497919,1709079037521,-500.0,0.00023835,2]
[315497920,1709079037530,-500.0,0.00023835,2]
[315497921,1709079037539,-500.0,0.00023835,2]
[315497922,1709079037548,-500.0,0.00023835,2]
[315497923,1709079037557,-500.0,0.00023835,2]
[315497924,1709079037566,-500.0,0.00023835,2]
[315497925,1709079037575,-500.0,0.00023835,2]
[315497926,1709079037584,-500.0,0.00023835,2]
[315497927,1709079037594,-539.57037904,0.00023835,2]
[315497928,1709079037603,-500.0,0.00023835,2]
[315497929,1709079037612,-500.0,0.00023835,2]
[315497930,1709079037621,-500.0,0.00023835,2]
[315497931,1709079037631,-500.0,0.00023835,2]
[315497932,1709079037641,-500.0,0.00023835,2]
[315497933,1709079037650,-500.0,0.00023835,2]
[315497934,1709079037659,-500.0,0.00023835,2]
[315497935,1709079037669,-500.0,0.00023835,2]
[315497936,1709079037678,-500.0,0.00023835,2]
[315497937,1709079037686,-500.0,0.00023835,2]
[315497938,1709079037695,-511.96637264,0.00023835,2]
[315497939,1709079037704,-500.0,0.00023835,2]
[315497940,1709079037713,-500.0,0.00023835,2]
[315497941,1709079037722,-500.0,0.00023835,2]
[315497942,1709079037731,-490.31178831,0.00023835,2]
[315497943,1709079037740,-508.53768294,0.00023835,2]
[315497944,1709079037749,-500.0,0.00023835,2]
[315497945,1709079037758,-507.53678305,0.00023835,2]
[315497946,1709079037767,-500.0,0.00023835,2]
[315497947,1709079037776,-500.0,0.00023835,2]
[315497948,1709079037785,-500.0,0.00023835,2]
[315497949,1709079037794,-500.0,0.00023835,2]
[315497950,1709079037804,-500.0,0.00023835,2]
[315497951,1709079037813,-500.0,0.00023835,2]
[315497952,1709079037822,-358.17609613,0.00023835,2]
[315497953,1709079037831,-500.0,0.00023835,2]
[315497954,1709079037841,-500.0,0.00023835,2]
[315497955,1709079037851,-500.0,0.00023835,2]
[315497956,1709079037862,-500.0,0.00023835,2]
[315497957,1709079037874,-500.0,0.00023835,2]
[315497958,1709079037884,-500.0,0.00023835,2]
[315497959,1709079037894,-500.0,0.00023835,2]
[315497960,1709079037905,-500.0,0.00023835,2]
[315497961,1709079037915,-500.0,0.00023835,2]
[315497962,1709079037925,-500.0,0.00023835,2]
[315497963,1709079037935,-473.25556276,0.00023835,2]
[315497964,1709079037944,-500.0,0.00023835,2]
[315497965,1709079037954,-500.0,0.00023835,2]
[315497966,1709079037963,-500.0,0.00023835,2]
[315497967,1709079037973,-500.0,0.00023835,2]
[315497968,1709079037982,-500.0,0.00023835,2]
[315497969,1709079037992,-500.0,0.00023835,2]
[315497970,1709079038002,-500.0,0.00023835,2]
[315497971,1709079038011,-500.0,0.00023835,2]
[315497972,1709079038021,-500.0,0.00023835,2]
[315497973,1709079038030,-500.0,0.00023835,2]
[315497974,1709079038040,-500.0,0.00023835,2]
[315497975,1709079038049,-500.0,0.00023835,2]
[315497976,1709079038060,-500.0,0.00023835,2]
[315497977,1709079038069,-500.0,0.00023835,2]
[315497978,1709079038079,-519.79163024,0.00023835,2]
[315497979,1709079038089,-501.54725484,0.00023835,2]
[315497980,1709079038099,-559.58865289,0.00023835,2]
[315497981,1709079038109,-500.0,0.00023835,2]
[315497982,1709079038119,-500.0,0.00023835,2]
[315497983,1709079038129,-563.93767362,0.00023835,2]
[315497984,1709079038138,-500.0,0.00023835,2]
[315497985,1709079038149,-500.0,0.00023835,2]
[315497986,1709079038159,-500.0,0.00023835,2]
[315497987,1709079038170,-500.0,0.00023835,2]
[315497988,1709079038179,-500.0,0.00023835,2]
[315497989,1709079038189,-500.0,0.00023835,2]
[315497990,1709079038198,-500.0,0.00023835,2]
[315497991,1709079038209,-500.0,0.00023835,2]
[315497992,1709079038219,-591.50460226,0.00023835,2]
[315497993,1709079038228,-500.0,0.00023835,2]
[315497994,1709079038239,-500.0,0.00023835,2]
[315497995,1709079038248,-500.0,0.00023835,2]
[315497996,1709079038257,-500.0,0.00023835,2]
[315497997,1709079038266,-500.0,0.00023835,2]
[315497998,1709079038275,-500.0,0.00023835,2]
[315497999,1709079038284,-500.0,0.00023835,2]
[315498000,1709079038293,-500.0,0.00023835,2]
[315498001,1709079038301,-500.0,0.00023835,2]
[315498002,1709079038310,-500.0,0.00023835,2]
[315498003,1709079038319,-500.0,0.00023835,2]
[315498004,1709079038328,-500.0,0.00023835,2]
[315498005,1709079038338,-500.0,0.00023835,2]
[315498006,1709079038346,-500.0,0.00023835,2]
[315498007,1709079038355,-500.0,0.00023835,2]
[315498008,1709079038365,-500.0,0.00023835,2]
[315498009,1709079038375,-542.73232095,0.00023835,2]
[315498010,1709079038385,-500.0,0.00023835,2]
[315498011,1709079038394,-500.0,0.00023835,2]
[315498012,1709079038403,-504.37698,0.00023835,2]
[315498013,1709079038412,-493.0,0.00023835,2]
[315498014,1709079038421,-500.0,0.00023835,2]
[315498015,1709079038430,-500.0,0.00023835,2]
[315498016,1709079038439,-500.0,0.00023835,2]
[315498017,1709079038448,-500.0,0.00023835,2]
[315498018,1709079038458,-500.0,0.00023835,2]
[315498019,1709079038467,-500.0,0.00023835,2]
[315498020,1709079038476,-641.47787947,0.00023835,2]
[315498021,1709079038485,-500.32431772,0.00023835,2]
[315498022,1709079038494,-500.0,0.00023835,2]
[315498023,1709079038503,-500.0,0.00023835,2]
[315498024,1709079038512,-500.0,0.00023835,2]
[315498025,1709079038521,-500.0,0.00023835,2]
[315498026,1709079038530,-500.0,0.00023835,2]
[315498027,1709079038538,-500.0,0.00023835,2]
[315498028,1709079038547,-500.0,0.00023835,2]
[315498029,1709079038556,-414.87359554,0.00023835,2]
[315498030,1709079038565,-500.0,0.00023835,2]
[315498031,1709079038574,-500.0,0.00023835,2]
[315498032,1709079038583,-619.67632715,0.00023835,2]
[315498033,1709079038592,-500.0,0.00023835,2]
[315498034,1709079038601,-500.0,0.00023835,2]
[315498035,1709079038610,-500.0,0.00023835,2]
[315498036,1709079038621,-500.0,0.00023835,2]
[315498037,1709079038630,-500.0,0.00023835,2]
[315498038,1709079038639,-500.0,0.00023835,2]
[315498039,1709079038648,-500.0,0.00023835,2]
[315498040,1709079038657,-500.0,0.00023835,2]
[315498041,1709079038666,-500.0,0.00023835,2]
[315498042,1709079038675,-500.0,0.00023835,2]
[315498043,1709079038684,-500.0,0.00023835,2]
[315498044,1709079038694,-500.0,0.00023835,2]
[315498045,1709079038703,-500.0,0.00023835,2]
[315498046,1709079038712,-500.0,0.00023835,2]
[315498047,1709079038722,-563.09102967,0.00023835,2]
[315498048,1709079038731,-507.78141552,0.00023835,2]
[315498049,1709079038740,-500.0,0.00023835,2]
[315498050,1709079038749,-513.1591582,0.00023835,2]